[Event "Modransky Cup 2025"]
[Site "Modra"]
[Date "2025.02.21"]
[Round "3.20"]
[White "Vorsilka, Jiri"]
[Black "Bednar, Daniel"]
[Result "0-1"]
[Annotator "NA"]
[ECO "A25"]
[WhiteElo "1653"]
[BlackElo "1720"]
[PlyCount "42"]
[EventDate "2025.02.20"]
[EventCountry "SVK"]
[SourceTitle "playchess.com"]
[Source "ChessBase"]
[SourceQuality "1"]
[TimeControl "5400+30"]

1. c4 {[%emt 0:00:03]} e5 {[%emt 0:00:47]} 2. Nc3 {[%emt 0:00:08]} Nc6 {[%emt 0:00:00]} 3. g3 {[%emt 0:00:12]} f5 {[%emt 0:00:00]} 4. Bg2 {[%emt 0:00:19]} Nf6 {[%emt 0:00:09]} 5. d3 {[%emt 0:00:25]} d6 {[%emt 0:00:17]} 6. e4 {[%emt 0:00:30]} fxe4 {[%emt 0:01:19]} 7. dxe4 {[%emt 0:00:09]} Be7 {[%emt 0:01:06]} 8. b3 {[%emt 0:02:16]} O-O {[%emt 0:01:20]} 9. Bb2 {[%emt 0:00:11]} Nd4 {[%emt 0:02:52]} 10. Nge2 {[%emt 0:00:54]} Bg4 {[%emt 0:03:19]} 11. h3 {[%emt 0:00:25]} Bf3 {[%emt 0:01:49]} 12. Bxf3 {[%emt 0:01:06]} Nxf3+ {[%emt 0:00:09]} 13. Kf1 {[%emt 0:00:02]} Ng5 {[%emt 0:09:42]} 14. h4 {[%emt 0:00:42]} Ne6 {[%emt 0:04:41]} 15. f3 {[%emt 0:01:46]} Ng4 {[%emt 0:10:22]} 16. Qd3 {[%emt 0:00:57]} Nc5 {[%emt 0:02:50]} 17. Qd5+ {[%emt 0:00:36]} Kh8 {[%emt 0:00:28]} 18. Kg1 {[%emt 0:00:27]} Rxf3 {[%emt 0:01:09]} 19. Ba3 {[%emt 0:01:19]} Ne3 {[%emt 0:01:00]} 20. Qd2 {[%emt 0:00:24]} Qf8 {[%emt 0:00:38]} 21. Kh2 {[%emt 0:01:37]} Rf2+ {[%emt 0:00:32]} 0-1

[Event "Modransky Cup 2025"]
[Site "Modra"]
[Date "2025.02.21"]
[Round "3.21"]
[White "Novomeska, Karin"]
[Black "Gonda, Jan"]
[Result "1-0"]
[Annotator "NA"]
[ECO "E04"]
[WhiteElo "2006"]
[BlackElo "1633"]
[PlyCount "70"]
[EventDate "2025.02.20"]
[EventCountry "SVK"]
[SourceTitle "playchess.com"]
[Source "ChessBase"]
[SourceQuality "1"]
[TimeControl "5400+30"]

1. d4 {[%emt 0:00:08]} Nf6 {[%emt 0:00:53]} 2. c4 {[%emt 0:00:07]} e6 {[%emt 0:00:10]} 3. Nf3 {[%emt 0:00:06]} d5 {[%emt 0:00:48]} 4. g3 {[%emt 0:00:10]} Bb4+ {[%emt 0:01:03]} 5. Nbd2 {[%emt 0:01:47]} O-O {[%emt 0:02:24]} 6. Bg2 {[%emt 0:00:12]} dxc4 {[%emt 0:01:00]} 7. O-O {[%emt 0:06:28]} Nbd7 {[%emt 0:06:53]} 8. Nxc4 {[%emt 0:00:26]} Be7 {[%emt 0:01:32]} 9. Qc2 {[%emt 0:00:51]} c6 {[%emt 0:03:23]} 10. Rd1 {[%emt 0:01:59]} Nb6 {[%emt 0:02:06]} 11. b3 {[%emt 0:08:39]} Nxc4 {[%emt 0:05:21]} 12. bxc4 {[%emt 0:00:25]} Qc7 {[%emt 0:08:08]} 13. e4 {[%emt 0:02:24]} Bd7 {[%emt 0:11:31]} 14. Bf4 {[%emt 0:01:14]} Qc8 {[%emt 0:00:59]} 15. e5 {[%emt 0:09:08]} Nh5 {[%emt 0:01:10]} 16. Ng5 {[%emt 0:01:05]} g6 {[%emt 0:03:02]} 17. Bc1 {[%emt 0:04:48]} Bxg5 {[%emt 0:05:52]} 18. Bxg5 {[%emt 0:00:04]} Ng7 {[%emt 0:04:52]} 19. Bf6 {[%emt 0:03:19]} h6 {[%emt 0:02:56]} 20. Be4 {[%emt 0:03:07]} Kh7 {[%emt 0:01:24]} 21. Qe2 {[%emt 0:13:13]} Rg8 {[%emt 0:05:26]} 22. g4 {[%emt 0:02:35]} Qf8 {[%emt 0:03:03]} 23. Qf3 {[%emt 0:05:28]} Ne8 {[%emt 0:01:04]} 24. Bh4 {[%emt 0:00:36]} Kh8 {[%emt 0:02:13]} 25. Rab1 {[%emt 0:04:45]} Rb8 {[%emt 0:03:11]} 26. d5 {[%emt 0:01:39]} g5 {[%emt 0:00:52]} 27. Bg3 {[%emt 0:00:41]} cxd5 {[%emt 0:02:52]} 28. cxd5 {[%emt 0:00:16]} b6 {[%emt 0:00:28]} 29. Rbc1 {[%emt 0:05:13]} Rc8 {[%emt 0:06:52]} 30. Rxc8 {[%emt 0:02:01]} Bxc8 {[%emt 0:00:01]} 31. d6 {[%emt 0:00:41]} Bd7 {[%emt 0:00:44]} 32. Rc1 {[%emt 0:00:58]} Ng7 {[%emt 0:00:54]} 33. Rc7 {[%emt 0:00:26]} Qd8 {[%emt 0:03:38]} 34. Qxf7 {[%emt 0:01:32]} Be8 {[%emt 0:00:40]} 35. Qf6 {[%emt 0:00:06]} Qb8 {[%emt 0:02:31]} 1-0

[Event "Modransky Cup 2025"]
[Site "Modra"]
[Date "2025.02.21"]
[Round "3.22"]
[White "Vernerova, Ema"]
[Black "Banas, Kamil"]
[Result "1-0"]
[Annotator "NA"]
[ECO "B50"]
[WhiteElo "1428"]
[BlackElo "1651"]
[PlyCount "44"]
[EventDate "2025.02.20"]
[EventCountry "SVK"]
[SourceTitle "playchess.com"]
[Source "ChessBase"]
[SourceQuality "1"]
[TimeControl "5400+30"]

1. e4 {[%emt 0:00:06]} c5 {[%emt 0:00:33]} 2. Nf3 {[%emt 0:01:34]} d6 {[%emt 0:00:00]} 3. Bc4 {[%emt 0:00:39]} Nf6 {[%emt 0:00:14]} 4. d3 {[%emt 0:01:02]} g6 {[%emt 0:00:27]} 5. Nc3 {[%emt 0:01:00]} Bg7 {[%emt 0:00:10]} 6. O-O {[%emt 0:00:28]} O-O {[%emt 0:00:05]} 7. Be3 {[%emt 0:00:23]} Nc6 {[%emt 0:00:30]} 8. Qd2 {[%emt 0:00:26]} Re8 {[%emt 0:00:52]} 9. Bh6 {[%emt 0:00:26]} Bh8 {[%emt 0:00:05]} 10. Bg5 {[%emt 0:01:29]} Bd7 {[%emt 0:02:32]} 11. Rfe1 {[%emt 0:02:09]} Qc7 {[%emt 0:01:21]} 12. Rad1 {[%emt 0:00:48]} Rac8 {[%emt 0:00:55]} 13. Nd5 {[%emt 0:02:27]} Nxd5 {[%emt 0:01:55]} 14. Bxd5 {[%emt 0:00:40]} b5 {[%emt 0:12:12]} 15. Qf4 {[%emt 0:02:00]} e6 {[%emt 0:01:57]} 16. Bb3 {[%emt 0:00:34]} Bxb2 {[%emt 0:12:02]} 17. Re3 {[%emt 0:07:16]} Bg7 {[%emt 0:17:18]} 18. Nh4 {[%emt 0:01:58]} f6 {[%emt 0:00:08]} 19. Rf3 {[%emt 0:04:49]} fxg5 {[%emt 0:01:10]} 20. Qf7+ {[%emt 0:00:22]} Kh8 {[%emt 0:00:05]} 21. Nxg6+ {[%emt 0:00:18]} hxg6 {[%emt 0:00:10]} 22. Rh3+ {[%emt 0:00:10]} Bh6 {[%emt 0:00:31]} 1-0

[Event "Modransky Cup 2025"]
[Site "Modra"]
[Date "2025.02.21"]
[Round "3.23"]
[White "Chojnacki, Kevin"]
[Black "Segeda, Milos"]
[Result "1-0"]
[Annotator "NA"]
[ECO "A04"]
[WhiteElo "1643"]
[BlackElo "1519"]
[PlyCount "81"]
[EventDate "2025.02.20"]
[EventCountry "SVK"]
[SourceTitle "playchess.com"]
[Source "ChessBase"]
[SourceQuality "1"]
[TimeControl "5400+30"]

1. Nf3 {[%emt 0:00:09]} h6 {[%emt 0:02:04]} 2. b3 {[%emt 0:01:19]} Nc6 {[%emt 0:00:44]} 3. Bb2 {[%emt 0:00:02]} d6 {[%emt 0:01:19]} 4. d4 {[%emt 0:00:30]} Bf5 {[%emt 0:00:53]} 5. Nbd2 {[%emt 0:00:57]} d5 {[%emt 0:01:05]} 6. a3 {[%emt 0:01:05]} e6 {[%emt 0:00:57]} 7. g3 {[%emt 0:00:27]} Be7 {[%emt 0:01:32]} 8. Bg2 {[%emt 0:00:09]} Nf6 {[%emt 0:01:01]} 9. O-O {[%emt 0:00:10]} Qd7 {[%emt 0:07:59]} 10. Rc1 {[%emt 0:01:35]} Nh5 {[%emt 0:01:34]} 11. h3 {[%emt 0:02:43]} Bg6 {[%emt 0:01:12]} 12. b4 {[%emt 0:00:59]} a6 {[%emt 0:02:44]} 13. c4 {[%emt 0:00:36]} b5 {[%emt 0:07:03]} 14. cxd5 {[%emt 0:02:31]} exd5 {[%emt 0:01:15]} 15. Nb3 {[%emt 0:03:04]} O-O {[%emt 0:04:29]} 16. Nc5 {[%emt 0:00:09]} Bxc5 {[%emt 0:00:22]} 17. Rxc5 {[%emt 0:00:28]} Be4 {[%emt 0:03:42]} 18. Qc1 {[%emt 0:01:08]} Bxf3 {[%emt 0:16:48]} 19. exf3 {[%emt 0:12:02]} Nf6 {[%emt 0:02:01]} 20. Rxc6 {[%emt 0:00:30]} Ra7 {[%emt 0:00:30]} 21. Rc5 {[%emt 0:00:30]} g5 {[%emt 0:00:30]} 22. Re1 {[%emt 0:00:30]} Kg7 {[%emt 0:01:22]} 23. Re5 {[%emt 0:03:00]} Re8 {[%emt 0:00:57]} 24. Rxe8 {[%emt 0:06:29]} Nxe8 {[%emt 0:02:21]} 25. f4 {[%emt 0:00:30]} Nf6 {[%emt 0:05:04]} 26. fxg5 {[%emt 0:00:00]} Ne4 {[%emt 0:00:35]} 27. gxh6+ {[%emt 0:00:29]} Kh7 {[%emt 0:02:22]} 28. Bxe4+ {[%emt 0:00:30]} dxe4 {[%emt 0:00:33]} 29. Qg5 {[%emt 0:00:28]} f6 {[%emt 0:01:18]} 30. Qxf6 {[%emt 0:01:47]} c6 {[%emt 0:01:27]} 31. Rxc6 {[%emt 0:03:01]} Qf7 {[%emt 0:00:10]} 32. Qxf7+ {[%emt 0:00:55]} Rxf7 {[%emt 0:00:26]} 33. Bc1 {[%emt 0:00:09]} Rd7 {[%emt 0:02:41]} 34. Be3 {[%emt 0:00:18]} Rf7 {[%emt 0:06:01]} 35. Rxa6 {[%emt 0:00:27]} Rf3 {[%emt 0:00:38]} 36. d5 {[%emt 0:01:05]} Kg8 {[%emt 0:02:03]} 37. Kg2 {[%emt 0:01:11]} Rf7 {[%emt 0:02:53]} 38. Ra8+ {[%emt 0:01:43]} Kh7 {[%emt 0:00:54]} 39. Ra7 {[%emt 0:00:30]} Rxa7 {[%emt 0:00:33]} 40. Bxa7 {[%emt 0:00:00]} Kxh6 {[%emt 0:00:37]} 41. d6 {[%emt 0:00:00]} 1-0

[Event "Modransky Cup 2025"]
[Site "Modra"]
[Date "2025.02.22"]
[Round "4.1"]
[White "Durana, Jonas"]
[Black "Stevik, Patrik"]
[Result "0-1"]
[Annotator "RC"]
[ECO "B20"]
[WhiteElo "2006"]
[BlackElo "2331"]
[PlyCount "96"]
[EventDate "2025.02.20"]
[EventCountry "SVK"]
[SourceTitle "playchess.com"]
[Source "ChessBase"]
[SourceQuality "1"]
[TimeControl "5400+30"]

1. e4 {[%emt 0:00:05]} c5 {[%emt 0:00:11]} 2. g3 {[%emt 0:00:37]} d5 {[%emt 0:00:27]} 3. exd5 {[%emt 0:00:03]} Qxd5 {[%emt 0:00:02]} 4. Nf3 {[%emt 0:00:07]} Bg4 {[%emt 0:00:22]} 5. Bg2 {[%emt 0:00:04]} Nc6 {[%emt 0:00:06]} 6. d3 {[%emt 0:02:25]} Nf6 {[%emt 0:05:51]} 7. Nc3 {[%emt 0:04:01]} Qd7 {[%emt 0:02:17]} 8. O-O {[%emt 0:02:35]} e6 {[%emt 0:00:51]} 9. h3 {[%emt 0:01:49]} Bh5 {[%emt 0:00:45]} 10. Bf4 {[%emt 0:13:49]} Be7 {[%emt 0:00:56]} 11. Re1 {[%emt 0:01:41]} O-O {[%emt 0:00:29]} 12. g4 {[%emt 0:00:44]} Bg6 {[%emt 0:00:30]} 13. Qe2 {[%emt 0:00:59]} Nd4 {[%emt 0:02:14]} 14. Qd2 {[%emt 0:09:38]} Rad8 {[%emt 0:04:35]} 15. Ne5 {[%emt 0:06:18]} Qc8 {[%emt 0:00:04]} 16. Ne2 {[%emt 0:00:58]} Nd7 {[%emt 0:09:24]} 17. Nxg6 {[%emt 0:04:19]} hxg6 {[%emt 0:00:22]} 18. Qc3 {[%emt 0:03:15]} g5 {[%emt 0:04:02]} 19. Bg3 {[%emt 0:01:41]} Nc6 {[%emt 0:01:05]} 20. Rad1 {[%emt 0:13:45]} Nb6 {[%emt 0:03:00]} 21. Qb3 {[%emt 0:03:10]} Bd6 {[%emt 0:04:47]} 22. Bxd6 {[%emt 0:09:58]} Rxd6 {[%emt 0:00:28]} 23. Bxc6 {[%emt 0:00:42]} Qxc6 {[%emt 0:14:24]} 24. Nc3 {[%emt 0:00:11]} Rfd8 {[%emt 0:00:30]} 25. Qb5 {[%emt 0:02:04]} a6 {[%emt 0:00:30]} 26. Qxc6 {[%emt 0:00:09]} Rxc6 {[%emt 0:06:14]} 27. Re3 {[%emt 0:03:47]} f6 {[%emt 0:01:45]} 28. Kf1 {[%emt 0:00:26]} e5 {[%emt 0:00:27]} 29. Ke2 {[%emt 0:01:51]} Kf7 {[%emt 0:01:36]} 30. Rh1 {[%emt 0:01:49]} Rh8 {[%emt 0:00:28]} 31. Rg3 {[%emt 0:03:52]} Nd7 {[%emt 0:00:51]} 32. Nd5 {[%emt 0:00:48]} Nf8 {[%emt 0:00:23]} 33. c4 {[%emt 0:04:44]} Ne6 {[%emt 0:00:29]} 34. Rgg1 {[%emt 0:00:53]} Rd6 {[%emt 0:00:59]} 35. Ke3 {[%emt 0:00:32]} Nf4 {[%emt 0:04:39]} 36. Kd2 {[%emt 0:03:21]} Nxd5 {[%emt 0:01:46]} 37. cxd5 {[%emt 0:00:04]} Rxd5 {[%emt 0:00:04]} 38. Ke2 {[%emt 0:00:54]} Rhd8 {[%emt 0:01:17]} 39. Rd1 {[%emt 0:00:35]} Rd4 {[%emt 0:00:43]} 40. f3 {[%emt 0:00:30]} Ke6 {[%emt 0:00:35]} 41. a3 {[%emt 0:00:06]} a5 {[%emt 0:00:22]} 42. b3 {[%emt 0:01:11]} b5 {[%emt 0:00:50]} 43. Rc1 {[%emt 0:00:30]} Rxd3 {[%emt 0:00:00]} 44. Rxc5 {[%emt 0:00:00]} Rd2+ {[%emt 0:00:06]} 45. Ke3 {[%emt 0:00:00]} R8d3+ {[%emt 0:00:30]} 46. Ke4 {[%emt 0:00:13]} Rxb3 {[%emt 0:00:30]} 47. Rc6+ {[%emt 0:00:24]} Kf7 {[%emt 0:00:21]} 48. Rc7+ {[%emt 0:00:03]} Kg6 {[%emt 0:00:06]} 0-1

[Event "Modransky Cup 2025"]
[Site "Modra"]
[Date "2025.02.22"]
[Round "4.2"]
[White "Shirinyan, Daniel"]
[Black "Janik, Marek Tobias"]
[Result "0-1"]
[Annotator "RC"]
[ECO "D20"]
[WhiteElo "2231"]
[BlackElo "2002"]
[PlyCount "79"]
[EventDate "2025.02.20"]
[EventCountry "SVK"]
[SourceTitle "playchess.com"]
[Source "ChessBase"]
[SourceQuality "1"]
[TimeControl "5400+30"]

1. d4 {[%emt 0:00:04]} d5 {[%emt 0:00:04]} 2. c4 {[%emt 0:00:04]} dxc4 {[%emt 0:00:04]} 3. e4 {[%emt 0:00:24]} e5 {[%emt 0:01:02]} 4. Nf3 {[%emt 0:00:02]} exd4 {[%emt 0:02:01]} 5. Bxc4 {[%emt 0:01:12]} Nc6 {[%emt 0:01:52]} 6. O-O {[%emt 0:00:05]} Be7 {[%emt 0:01:18]} 7. Qb3 {[%emt 0:06:21]} Na5 {[%emt 0:13:24]} 8. Bxf7+ {[%emt 0:00:21]} Kf8 {[%emt 0:00:05]} 9. Qa4 {[%emt 0:02:42]} c5 {[%emt 0:07:45]} 10. Bxg8 {[%emt 0:05:40]} Kxg8 {[%emt 0:05:47]} 11. Bd2 {[%emt 0:27:47]} Nc6 {[%emt 0:00:36]} 12. Qc4+ {[%emt 0:00:06]} Kf8 {[%emt 0:00:08]} 13. a4 {[%emt 0:08:06]} Bg4 {[%emt 0:09:26]} 14. Ra3 {[%emt 0:00:34]} Qd7 {[%emt 0:04:16]} 15. Bg5 {[%emt 0:04:39]} Be6 {[%emt 0:04:45]} 16. Qc1 {[%emt 0:00:45]} Kg8 {[%emt 0:04:23]} 17. Bxe7 {[%emt 0:02:53]} Qxe7 {[%emt 0:02:24]} 18. Ng5 {[%emt 0:00:43]} b6 {[%emt 0:00:54]} 19. Nxe6 {[%emt 0:00:36]} Qxe6 {[%emt 0:00:06]} 20. Nd2 {[%emt 0:00:09]} Rd8 {[%emt 0:07:35]} 21. f4 {[%emt 0:00:34]} h6 {[%emt 0:01:05]} 22. e5 {[%emt 0:01:05]} Kf7 {[%emt 0:03:42]} 23. Nc4 {[%emt 0:01:14]} Rhf8 {[%emt 0:01:47]} 24. f5 {[%emt 0:10:22]} Qd5 {[%emt 0:00:09]} 25. f6 {[%emt 0:07:32]} Nxe5 {[%emt 0:11:17]} 26. Nxe5+ {[%emt 0:03:52]} Qxe5 {[%emt 0:00:05]} 27. Rg3 {[%emt 0:00:06]} g5 {[%emt 0:01:05]} 28. Qc4+ {[%emt 0:13:31]} Ke8 {[%emt 0:04:28]} 29. Qb5+ {[%emt 0:00:17]} Kf7 {[%emt 0:00:16]} 30. Qd3 {[%emt 0:00:19]} Ke6 {[%emt 0:04:44]} 31. Qg6 {[%emt 0:01:42]} Rxf6 {[%emt 0:01:24]} 32. Rxf6+ {[%emt 0:00:22]} Qxf6 {[%emt 0:00:06]} 33. Qe4+ {[%emt 0:00:05]} Qe5 {[%emt 0:00:34]} 34. Qc6+ {[%emt 0:00:23]} Ke7 {[%emt 0:01:12]} 35. Rf3 {[%emt 0:00:20]} d3 {[%emt 0:02:44]} 36. Qg6 {[%emt 0:01:02]} Qe1+ {[%emt 0:02:17]} 37. Rf1 {[%emt 0:00:01]} d2 {[%emt 0:00:09]} 38. Qf6+ {[%emt 0:02:49]} Kd7 {[%emt 0:00:20]} 39. Qf2 {[%emt 0:00:36]} Qxf2+ {[%emt 0:00:13]} 40. Kxf2 {[%emt 0:00:02]} 0-1

[Event "Modransky Cup 2025"]
[Site "Modra"]
[Date "2025.02.22"]
[Round "4.3"]
[White "Chlpek, Daniel"]
[Black "Banas, Kamil"]
[Result "0-1"]
[Annotator "RC"]
[ECO "D02"]
[WhiteElo "2039"]
[BlackElo "2178"]
[PlyCount "78"]
[EventDate "2025.02.20"]
[EventCountry "SVK"]
[SourceTitle "playchess.com"]
[Source "ChessBase"]
[SourceQuality "1"]
[TimeControl "5400+30"]

1. d4 {[%emt 0:00:17]} d5 {[%emt 0:00:02]} 2. Nf3 {[%emt 0:00:17]} e6 {[%emt 0:00:42]} 3. Bg5 {[%emt 0:01:29]} Be7 {[%emt 0:00:54]} 4. Bxe7 {[%emt 0:00:08]} Qxe7 {[%emt 0:00:06]} 5. Nbd2 {[%emt 0:00:07]} Nf6 {[%emt 0:01:29]} 6. e3 {[%emt 0:00:08]} O-O {[%emt 0:00:53]} 7. Bd3 {[%emt 0:00:13]} b6 {[%emt 0:01:13]} 8. O-O {[%emt 0:05:11]} Bb7 {[%emt 0:02:12]} 9. Ne5 {[%emt 0:02:00]} Ne4 {[%emt 0:08:18]} 10. Nxe4 {[%emt 0:22:56]} dxe4 {[%emt 0:00:28]} 11. Be2 {[%emt 0:00:08]} Rd8 {[%emt 0:10:06]} 12. c3 {[%emt 0:11:34]} c5 {[%emt 0:00:56]} 13. f3 {[%emt 0:15:15]} f6 {[%emt 0:10:18]} 14. Nc4 {[%emt 0:01:07]} exf3 {[%emt 0:08:07]} 15. Bxf3 {[%emt 0:00:20]} Bd5 {[%emt 0:00:10]} 16. Nd2 {[%emt 0:01:27]} cxd4 {[%emt 0:09:39]} 17. exd4 {[%emt 0:00:18]} Bxf3 {[%emt 0:01:34]} 18. Nxf3 {[%emt 0:02:08]} Nd7 {[%emt 0:01:19]} 19. Qb3 {[%emt 0:00:25]} Nf8 {[%emt 0:00:33]} 20. Rae1 {[%emt 0:00:47]} Qd6 {[%emt 0:03:43]} 21. Rf2 {[%emt 0:02:36]} Rac8 {[%emt 0:01:14]} 22. Rfe2 {[%emt 0:00:51]} Qd5 {[%emt 0:01:01]} 23. Qxd5 {[%emt 0:03:56]} Rxd5 {[%emt 0:00:03]} 24. Nd2 {[%emt 0:01:39]} Kf7 {[%emt 0:04:33]} 25. Ne4 {[%emt 0:01:41]} h5 {[%emt 0:01:12]} 26. Re3 {[%emt 0:01:43]} g5 {[%emt 0:01:47]} 27. Rf1 {[%emt 0:00:56]} Nh7 {[%emt 0:00:07]} 28. Nf2 {[%emt 0:04:38]} Re8 {[%emt 0:05:31]} 29. Nd3 {[%emt 0:00:41]} f5 {[%emt 0:02:01]} 30. Re5 {[%emt 0:02:56]} Rd6 {[%emt 0:00:51]} 31. d5 {[%emt 0:07:04]} Kf6 {[%emt 0:03:06]} 32. Rfe1 {[%emt 0:01:02]} Nf8 {[%emt 0:00:18]} 33. c4 {[%emt 0:04:15]} Nd7 {[%emt 0:04:44]} 34. R5e2 {[%emt 0:00:35]} e5 {[%emt 0:00:50]} 35. g3 {[%emt 0:04:00]} e4 {[%emt 0:01:17]} 36. h4 {[%emt 0:00:59]} gxh4 {[%emt 0:00:39]} 37. Nf4 {[%emt 0:00:45]} hxg3 {[%emt 0:01:53]} 38. Nxh5+ {[%emt 0:00:07]} Ke5 {[%emt 0:00:04]} 39. Nxg3 {[%emt 0:00:43]} Rg8 {[%emt 0:00:21]} 0-1

[Event "Modransky Cup 2025"]
[Site "Modra"]
[Date "2025.02.22"]
[Round "4.4"]
[White "Iankin, Arseni"]
[Black "Ondreicka, Roman"]
[Result "1-0"]
[Annotator "RC"]
[ECO "B03"]
[WhiteElo "2016"]
[BlackElo "1842"]
[PlyCount "179"]
[EventDate "2025.02.20"]
[EventCountry "SVK"]
[SourceTitle "playchess.com"]
[Source "ChessBase"]
[SourceQuality "1"]
[TimeControl "5400+30"]

1. e4 {[%emt 0:00:06]} Nf6 {[%emt 0:00:03]} 2. e5 {[%emt 0:00:09]} Nd5 {[%emt 0:00:04]} 3. d4 {[%emt 0:00:04]} d6 {[%emt 0:00:02]} 4. c4 {[%emt 0:00:07]} Nb6 {[%emt 0:00:03]} 5. exd6 {[%emt 0:00:05]} cxd6 {[%emt 0:00:03]} 6. Nc3 {[%emt 0:00:14]} g6 {[%emt 0:00:07]} 7. Be3 {[%emt 0:00:35]} Bg7 {[%emt 0:00:07]} 8. Rc1 {[%emt 0:00:08]} O-O {[%emt 0:00:18]} 9. b3 {[%emt 0:00:34]} Nc6 {[%emt 0:00:16]} 10. d5 {[%emt 0:03:36]} Nb8 {[%emt 0:05:56]} 11. h3 {[%emt 0:11:23]} N8d7 {[%emt 0:09:44]} 12. Nf3 {[%emt 0:04:26]} Nf6 {[%emt 0:03:40]} 13. Be2 {[%emt 0:06:36]} Bf5 {[%emt 0:08:38]} 14. Nd4 {[%emt 0:02:19]} Ne4 {[%emt 0:03:57]} 15. Nxe4 {[%emt 0:08:28]} Bxe4 {[%emt 0:01:06]} 16. O-O {[%emt 0:01:05]} Bf5 {[%emt 0:08:48]} 17. Nxf5 {[%emt 0:02:28]} gxf5 {[%emt 0:00:04]} 18. Qd3 {[%emt 0:16:59]} Qd7 {[%emt 0:03:17]} 19. Rfd1 {[%emt 0:02:20]} Rad8 {[%emt 0:02:26]} 20. Bf3 {[%emt 0:15:49]} e5 {[%emt 0:06:16]} 21. dxe6 {[%emt 0:00:05]} fxe6 {[%emt 0:00:15]} 22. c5 {[%emt 0:05:44]} dxc5 {[%emt 0:00:45]} 23. Qxd7 {[%emt 0:02:35]} Rxd7 {[%emt 0:00:55]} 24. Rxc5 {[%emt 0:06:19]} Rxd1+ {[%emt 0:01:07]} 25. Bxd1 {[%emt 0:00:13]} Nd5 {[%emt 0:00:01]} 26. Bf3 {[%emt 0:03:54]} Nxe3 {[%emt 0:01:22]} 27. fxe3 {[%emt 0:00:06]} b6 {[%emt 0:00:22]} 28. Rc7 {[%emt 0:00:39]} Rf7 {[%emt 0:00:15]} 29. Rc6 {[%emt 0:00:24]} Re7 {[%emt 0:00:42]} 30. Bh5 {[%emt 0:01:27]} Bh6 {[%emt 0:00:35]} 31. Kf2 {[%emt 0:00:17]} Kg7 {[%emt 0:01:11]} 32. Be2 {[%emt 0:00:59]} Kf6 {[%emt 0:00:58]} 33. Bc4 {[%emt 0:00:25]} Ke5 {[%emt 0:02:08]} 34. Kf3 {[%emt 0:00:13]} Bg5 {[%emt 0:01:22]} 35. b4 {[%emt 0:00:36]} Bh6 {[%emt 0:00:52]} 36. a4 {[%emt 0:00:08]} Bg5 {[%emt 0:00:34]} 37. a5 {[%emt 0:00:11]} bxa5 {[%emt 0:00:26]} 38. bxa5 {[%emt 0:00:06]} Kf6 {[%emt 0:00:37]} 39. a6 {[%emt 0:01:48]} Kf7 {[%emt 0:00:50]} 40. Rc5 {[%emt 0:02:26]} Ke8 {[%emt 0:06:11]} 41. Bb5+ {[%emt 0:03:36]} Kd8 {[%emt 0:01:29]} 42. e4 {[%emt 0:00:14]} fxe4+ {[%emt 0:00:24]} 43. Kxe4 {[%emt 0:00:06]} Bh4 {[%emt 0:00:51]} 44. Rh5 {[%emt 0:00:51]} Be1 {[%emt 0:04:09]} 45. g4 {[%emt 0:00:22]} Bd2 {[%emt 0:01:06]} 46. g5 {[%emt 0:00:11]} Rg7 {[%emt 0:02:08]} 47. h4 {[%emt 0:00:14]} Ke7 {[%emt 0:00:47]} 48. Bd3 {[%emt 0:00:27]} Kf7 {[%emt 0:00:31]} 49. Ke5 {[%emt 0:00:20]} Bc3+ {[%emt 0:02:13]} 50. Kd6 {[%emt 0:00:28]} Bb4+ {[%emt 0:00:28]} 51. Kd7 {[%emt 0:00:46]} Kg8+ {[%emt 0:00:38]} 52. Kxe6 {[%emt 0:00:30]} Be1 {[%emt 0:01:24]} 53. Kf5 {[%emt 0:01:27]} Rd7 {[%emt 0:03:13]} 54. Ke4 {[%emt 0:01:08]} Re7+ {[%emt 0:00:48]} 55. Kf3 {[%emt 0:00:18]} Rf7+ {[%emt 0:01:45]} 56. Kg4 {[%emt 0:00:35]} Rd7 {[%emt 0:00:47]} 57. Be4 {[%emt 0:00:17]} Re7 {[%emt 0:01:37]} 58. Bf5 {[%emt 0:00:42]} Rc7 {[%emt 0:00:52]} 59. Rh6 {[%emt 0:00:35]} Rc4+ {[%emt 0:01:20]} 60. Kh3 {[%emt 0:00:16]} Rc3+ {[%emt 0:00:10]} 61. Kg2 {[%emt 0:00:23]} Rc7 {[%emt 0:01:29]} 62. Kf3 {[%emt 0:00:34]} Re7 {[%emt 0:02:44]} 63. Kg4 {[%emt 0:00:38]} Rc7 {[%emt 0:00:57]} 64. Re6 {[%emt 0:00:44]} Bf2 {[%emt 0:01:37]} 65. h5 {[%emt 0:00:22]} Bg1 {[%emt 0:02:10]} 66. Re8+ {[%emt 0:00:35]} Kf7 {[%emt 0:00:54]} 67. Rh8 {[%emt 0:00:19]} Rc4+ {[%emt 0:00:05]} 68. Kf3 {[%emt 0:00:21]} Rc5 {[%emt 0:00:18]} 69. Ke4 {[%emt 0:00:56]} Rc4+ {[%emt 0:00:57]} 70. Kf3 {[%emt 0:00:30]} Rc5 {[%emt 0:00:07]} 71. Kf4 {[%emt 0:00:26]} Rc4+ {[%emt 0:01:26]} 72. Be4 {[%emt 0:00:16]} Bh2+ {[%emt 0:00:16]} 73. Ke3 {[%emt 0:00:32]} Bg1+ {[%emt 0:00:20]} 74. Kf3 {[%emt 0:00:17]} Rc5 {[%emt 0:01:55]} 75. Rxh7+ {[%emt 0:00:25]} Kg8 {[%emt 0:00:10]} 76. g6 {[%emt 0:00:18]} Rc3+ {[%emt 0:00:39]} 77. Kg2 {[%emt 0:00:10]} Bd4 {[%emt 0:00:37]} 78. Bd5+ {[%emt 0:01:18]} Kf8 {[%emt 0:00:09]} 79. Rf7+ {[%emt 0:00:22]} Ke8 {[%emt 0:00:13]} 80. g7 {[%emt 0:00:44]} Rc2+ {[%emt 0:00:11]} 81. Kh3 {[%emt 0:00:23]} Rc3+ {[%emt 0:00:16]} 82. Kg4 {[%emt 0:00:20]} Bxg7 {[%emt 0:00:44]} 83. Rxg7 {[%emt 0:00:05]} Rc1 {[%emt 0:00:04]} 84. h6 {[%emt 0:00:39]} Rg1+ {[%emt 0:00:12]} 85. Kf5 {[%emt 0:00:20]} Rf1+ {[%emt 0:00:23]} 86. Ke5 {[%emt 0:00:08]} Re1+ {[%emt 0:00:42]} 87. Kd6 {[%emt 0:00:13]} Rf1 {[%emt 0:00:29]} 88. Rg8+ {[%emt 0:00:22]} Rf8 {[%emt 0:00:10]} 89. Rxf8+ {[%emt 0:00:04]} Kxf8 {[%emt 0:00:06]} 90. Kc7 {[%emt 0:00:06]} 1-0

[Event "Modransky Cup 2025"]
[Site "Modra"]
[Date "2025.02.22"]
[Round "4.5"]
[White "Kapinaj, Matus"]
[Black "Osvald, David"]
[Result "1-0"]
[Annotator "RC"]
[ECO "B10"]
[WhiteElo "1999"]
[BlackElo "1852"]
[PlyCount "51"]
[EventDate "2025.02.20"]
[EventCountry "SVK"]
[SourceTitle "playchess.com"]
[Source "ChessBase"]
[SourceQuality "1"]
[TimeControl "5400+30"]

1. e4 {[%emt 0:00:45]} c6 {[%emt 0:01:23]} 2. c4 {[%emt 0:01:15]} d5 {[%emt 0:00:24]} 3. exd5 {[%emt 0:00:04]} cxd5 {[%emt 0:00:04]} 4. cxd5 {[%emt 0:00:04]} Nf6 {[%emt 0:00:08]} 5. Nc3 {[%emt 0:00:04]} Nxd5 {[%emt 0:01:04]} 6. Nf3 {[%emt 0:00:22]} Nc6 {[%emt 0:01:37]} 7. Bb5 {[%emt 0:00:08]} e6 {[%emt 0:00:56]} 8. O-O {[%emt 0:00:11]} Be7 {[%emt 0:00:21]} 9. Re1 {[%emt 0:00:22]} O-O {[%emt 0:00:37]} 10. d4 {[%emt 0:00:25]} Bd7 {[%emt 0:09:08]} 11. Bd3 {[%emt 0:02:34]} Bf6 {[%emt 0:02:34]} 12. Be4 {[%emt 0:00:57]} Nxc3 {[%emt 0:08:35]} 13. bxc3 {[%emt 0:00:15]} Na5 {[%emt 0:04:35]} 14. Qd3 {[%emt 0:05:10]} h6 {[%emt 0:08:37]} 15. Ba3 {[%emt 0:02:07]} Re8 {[%emt 0:04:40]} 16. Bb4 {[%emt 0:01:00]} Bc6 {[%emt 0:02:53]} 17. Bh7+ {[%emt 0:04:57]} Kh8 {[%emt 0:00:12]} 18. Ne5 {[%emt 0:00:16]} Bxe5 {[%emt 0:04:48]} 19. Rxe5 {[%emt 0:01:06]} Bd5 {[%emt 0:01:01]} 20. Bxa5 {[%emt 0:00:31]} Qxa5 {[%emt 0:13:59]} 21. c4 {[%emt 0:02:43]} f6 {[%emt 0:01:48]} 22. Rh5 {[%emt 0:00:24]} Bxc4 {[%emt 0:01:20]} 23. Rxa5 {[%emt 0:00:05]} Bxd3 {[%emt 0:00:09]} 24. Bxd3 {[%emt 0:00:04]} Red8 {[%emt 0:00:18]} 25. Be4 {[%emt 0:02:05]} Rxd4 {[%emt 0:01:25]} 26. Bxb7 {[%emt 0:00:18]} 1-0